Cogmind - Beta 10.2 @@@ ROGUE MODE // 2022.02.23 @ 19:21:11 Player: woegarden Result: Destroyed by Y-45 Defender with Heavy Assault Rifle Performance ------------- Evolutions (1) 500 Regions Visited (3) 600 Robots Destroyed (10) 50 Value Destroyed (141) 141 Prototype IDs (0) 0 Alien Tech Used (0) 0 Bonus (33) 33 TOTAL SCORE: 1324 Bonus ------- Follower Combat Kills 33 Cogmind --------- Core Integrity 0/400 Matter 56/300 Energy 100/100 System Corruption 0% Temperature Cool (9) Movement Core (550) Ox10 Location -9/Materials Parts ------- > --- POWER (2) -------- (None) > --- PROPULSION (2) --- (None) > --- UTILITY (3) ------ High-capacity Storage Unit > --- WEAPON (2) ------- (None) > --- INVENTORY (12) --- Light Treads Compact Wheel Large Storage Unit Large Storage Unit Mining Claw Peak State ------------ > --- POWER ------------ Ion Engine Ion Engine > --- PROPULSION ------- Light Treads Compact Wheel > --- UTILITY ---------- Improved Heat Sink High-capacity Storage Unit Light Armor Plating > --- WEAPON ----------- Grenade Launcher Mini Grenade Launcher > --- INVENTORY -------- Light Treads Compact Wheel Large Storage Unit Large Storage Unit Mining Claw [Rating: 12] Favorites ----------- Power Ion Engine Engine Ion Engine Propulsion Light Treads Treads Light Treads Wheel Compact Wheel Utility High-capacity Storage Unit Device Improved Heat Sink Storage High-capacity Storage Unit Protection Light Armor Plating Weapon Small Laser Energy Gun Small Laser Ballistic Gun Assault Rifle Launcher Mini Grenade Launcher Build | -11 -10 -10 -9 ------- Run | Scr Mat Min Mat Slots Evolved 2 | . . . 2 Power 1 | . . . 1 Propulsion . | . . . . Utility 1 | . . . 1 Weapon . | . . . . Parts Attached 23 | 9 4 . 10 Power 2 | 1 . . 1 Engine 2 | 1 . . 1 Core . | . . . . Reactor . | . . . . Propulsion 11 | 5 2 . 4 Treads 6 | 2 2 . 2 Leg . | . . . . Wheel 5 | 3 . . 2 Hover . | . . . . Flight . | . . . . Utility 5 | 1 2 . 2 Device 1 | . . . 1 Storage 3 | 1 2 . . Processor . | . . . . Hackware . | . . . . Protection 1 | . . . 1 Artifact . | . . . . Weapon 5 | 2 . . 3 Energy Gun 1 | 1 . . . Energy Cannon . | . . . . Ballistic Gun 1 | 1 . . . Ballistic Cannon . | . . . . Launcher 3 | . . . 3 Special Weapon . | . . . . Impact Weapon . | . . . . Slashing Weapon . | . . . . Piercing Weapon . | . . . . Special Melee Weapon . | . . . . Unidentified Prototypes . | . . . . Parts Lost 9 | . . . 9 Power 2 | . . . 2 Propulsion 2 | . . . 2 Utility 2 | . . . 2 Weapon 3 | . . . 3 Highest Loss Streak 6 | . . . 6 Average Slot Usage (%) 74 | . 85 85 59 Engine 14 | . 14 14 15 Treads 16 | . 17 28 7 Wheel 6 | . 10 . 8 Device 1 | . . . 2 Storage 12 | . 14 14 11 Protection 1 | . . . 4 Energy Gun 8 | . 14 14 2 Ballistic Gun 8 | . 14 14 2 Launcher 2 | . . . 5 Naked Turns . | . . . . Heaviest Build 50 | 12 40 40 50 Greatest Support 40 | 40 40 40 40 Greatest Overweight (x) 13 | . . . 13 Average Overweight (x) . | . . . 2 Largest Inventory Capacity 12 | 6 12 12 12 Average Capacity 11 | 5 10 12 12 Most Carried 10 | 4 9 10 9 Average Carried 6 | 2 6 8 6 Final Capacity 12 | 6 12 12 12 Final Carried 9 | 3 9 8 5 Class Distribution -------------------- 100% | Mutant Dominant Class ---------------- Mutant | -10/Materials Mutant | -10/Mines Mutant | -9/Materials Resources | -11 -10 -10 -9 ----------- Run | Scr Mat Min Mat Matter Collected 266 | 86 38 11 131 Remotely . | . . . . Salvage Created 156 | 51 38 38 29 Parts 19 | 1 2 8 8 Haulers Intercepted . | . . . . Recyclers Shooed . | . . . . Parts Field Recycled . | . . . . Retrieved Matter . | . . . . Parts Self-Destructed . | . . . . Prevented . | . . . . Kills | -11 -10 -10 -9 ------- Run | Scr Mat Min Mat Combat Hostiles Destroyed 8 | . 1 3 4 Guns 4 | . 1 3 . AOE 4 | . . . 4 Classes Destroyed 4 | 1 1 1 1 Worker 1 | . . . 1 Recycler 1 | 1 . . . Swarmer 7 | . . 3 4 Grunt 1 | . 1 . . Best Kill Streak 5 | 1 1 3 5 Combat Bots Only 4 | . 1 3 4 Max Kills in Single Turn 3 | 1 1 1 3 Gunslinging . | . . . . Exploded 2 | . . . 2 Melee . | . . . . Uniques/NPCs Destroyed . | . . . . Combat | -11 -10 -10 -9 -------- Run | Scr Mat Min Mat Damage Taken 1126 | . 42 36 1048 Core 431 | . 20 . 411 Absorbed by Shields . | . . . . Core Remaining (%) 96 | 100 . 92 . Volleys Fired 21 | 4 7 4 6 Largest 2 | 2 2 2 2 Hottest 60 | 60 60 60 60 Shots Fired 38 | 8 14 8 8 Gun 30 | 8 14 8 . Cannon . | . . . . Launcher 8 | . . . 8 Special . | . . . . Kinetic 15 | 4 7 4 . Thermal 15 | 4 7 4 . Explosive 8 | . . . 8 Electromagnetic . | . . . . Robot Hit Streak 4 | 3 4 4 4 Robot Miss Streak 3 | 1 3 2 2 Penetration Max . | . . . . Secondary Targets . | . . . . Shots Hit Robots 23 | 6 8 4 5 Core Hits 13 | 2 2 3 6 Critical Hits . | . . . . Critical Kills . | . . . . Critical Parts Destroyed . | . . . . Melee Attacks . | . . . . Impact . | . . . . Slashing . | . . . . Piercing . | . . . . Sneak Attacks . | . . . . Combat Hostiles . | . . . . Follow-up Attacks . | . . . . Damage Inflicted 701 | 71 76 59 495 Guns 206 | 71 76 59 . Cannons . | . . . . Explosions 495 | . . . 495 Melee . | . . . . Ramming . | . . . . Kinetic 96 | 25 33 38 . Thermal 110 | 46 43 21 . Explosive 495 | . . . 495 Electromagnetic . | . . . . Impact . | . . . . Slashing . | . . . . Piercing . | . . . . Highest Corruption . | . . . . Average Corruption . | . . . . Corruption Purged . | . . . . Overload Shots . | . . . . Overflow Damage 63 | . . . 63 Projectiles . | . . . . Explosions 63 | . . . 63 Melee . | . . . . Knockbacks . | . . . . Impact . | . . . . Kinetic . | . . . . Secondary . | . . . . Self-Inflicted Damage 173 | . . . 173 Shots 5 | . . . 5 Rammed . | . . . . Targets Rammed . | . . . . Kicked . | . . . . Crushed . | . . . . Highest Temperature 32 | . 32 . 9 Average Temperature 15 | . 19 . 9 Received Heat Transfer 258 | . 24 . 234 Siege Activations . | . . . . Robots Corrupted . | . . . . Combat Hostiles . | . . . . Parts Fried . | . . . . Impact Corruptions . | . . . . Robots Melted . | . . . . Combat Hostiles . | . . . . Parts Melted . | . . . . Heat Transferred 250 | 100 100 50 . Parts Sabotaged . | . . . . Parts Stolen . | . . . . Parts Stripped . | . . . . Power Chain Reactions . | . . . . Missiles Intercepted . | . . . . Alert | -11 -10 -10 -9 ------- Run | Scr Mat Min Mat Peak Influence 208 | 5 78 115 208 Initial 44 | . 3 30 44 Average 73 | 2 49 62 114 Maximum Alert Level 1 | . . . 1 Low Security (%) 99 | 100 100 100 99 Level 1 . | . . . . Level 2 . | . . . . Level 3 . | . . . . Level 4 . | . . . . Level 5 . | . . . . High Security . | . . . . Max Security . | . . . . Squads Dispatched 2 | . 2 . . Investigation 1 | . 1 . . Extermination . | . . . . Reinforcement 1 | . 1 . . Assault . | . . . . Garrison . | . . . . Intercept . | . . . . Construction Impeded . | . . . . Haulers Reinforced . | . . . . Stealth | -11 -10 -10 -9 --------- Run | Scr Mat Min Mat Distress Signals . | . . . . Communications Jammed . | . . . . Distress Signals . | . . . . Times Spotted 13 | . 3 4 6 Peak Tracking Total 4 | . 1 3 4 Tactical Retreats 1 | . . 1 . Traps | -11 -10 -10 -9 ------- Run | Scr Mat Min Mat Traps Triggered 3 | . 1 . 2 Indirectly . | . . . . Trap Hack Attempts . | . . . . Triggered . | . . . . Disarmed . | . . . . Reprogrammed . | . . . . Reused . | . . . . Traps Extracted . | . . . . Installed . | . . . . Triggered . | . . . . Machines | -11 -10 -10 -9 ---------- Run | Scr Mat Min Mat Machines Disabled 3 | . . . 3 Max in Single Turn 2 | . . . 2 Machines Sabotaged . | . . . . Garrisons Compromised . | . . . . Overloaded Fab Kills . | . . . . Fab Network Shutdowns . | . . . . Hacking | -11 -10 -10 -9 --------- Run | Scr Mat Min Mat Machines Accessed . | . . . . Terminals . | . . . . Fabricators . | . . . . Repair Stations . | . . . . Recycling Units . | . . . . Scanalyzers . | . . . . Garrison Access . | . . . . Total Hacks . | . . . . Successful . | . . . . Failed . | . . . . Catastrophic . | . . . . Database Lockouts . | . . . . Manual . | . . . . Terminals . | . . . . Fabricators . | . . . . Repair Stations . | . . . . Recycling Units . | . . . . Scanalyzers . | . . . . Garrison Access . | . . . . Terminal Hacks . | . . . . Fabricator Hacks . | . . . . Repair Station Hacks . | . . . . Recycling Unit Hacks . | . . . . Scanalyzer . | . . . . Garrison Access Hacks . | . . . . Unauthorized Hacks . | . . . . Terminals . | . . . . Fabricators . | . . . . Repair Stations . | . . . . Recycling Units . | . . . . Scanalyzers . | . . . . Garrison Access . | . . . . Data Cores Recovered . | . . . . Used . | . . . . Hacking Detections . | . . . . Full Trace Events . | . . . . Feedback Events . | . . . . Feedback Blocked . | . . . . Robot Schematics Acquired . | . . . . Robots Built . | . . . . Matter . | . . . . Time . | . . . . Total Robot Build Rating . | . . . . Part Schematics Acquired . | . . . . Parts Built . | . . . . Matter . | . . . . Time . | . . . . Total Part Build Rating . | . . . . Parts Repaired . | . . . . Time . | . . . . Parts Recycled . | . . . . Recycled Matter . | . . . . Retrieved Matter . | . . . . Retrieved Components . | . . . . Parts Scanalyzed . | . . . . Part Schematics Acquired . | . . . . Parts Damaged . | . . . . Bothacking | -11 -10 -10 -9 ------------ Run | Scr Mat Min Mat Used RIF Installer . | . . . . Robots Hacked . | . . . . Non-combat . | . . . . Combat . | . . . . Robot Hacks Applied . | . . . . Relay Couplers Released . | . . . . Robots Rewired . | . . . . Allies Hacked . | . . . . Hacks Repelled . | . . . . Allies | -11 -10 -10 -9 -------- Run | Scr Mat Min Mat Total Allies 2 | . . 2 . Largest Group 2 | . . 2 2 Highest-Rated Group 42 | . . 42 42 Highest-Rated Ally 31 | . . 31 31 Total Orders . | . . . . Ally Attacks 11 | . . . 11 Total Damage 131 | . . . 131 Kills 2 | . . . 2 Allies Corrupted . | . . . . Allies Melted . | . . . . Intel | -11 -10 -10 -9 ------- Run | Scr Mat Min Mat Robot Analysis Total . | . . . . Derelict Logs Recovered . | . . . . Drone Launches . | . . . . Drone Recoveries . | . . . . Exploration | -11 -10 -10 -9 ------------- Run | Scr Mat Min Mat Turns Passed 948 | 91 253 235 369 Spaces Moved 498 | 49 160 138 151 Core 29 | 8 . . 21 Treads 347 | 23 97 138 89 Legs . | . . . . Wheels 122 | 18 63 . 41 Hover . | . . . . Flight . | . . . . Fastest Speed 50 | 50 100 160 110 Average Speed 168 | 120 136 160 225 Slowest Speed 700 | 160 160 160 700 Overloaded Moves . | . . . . Propulsion Burnouts . | . . . . Robots Hopped 1 | . . . 1 Cave-ins Triggered . | . . . . Exploration Rate (%) 27 | 4 36 54 15 Regions Visited 3 Branch Regions 1 Pre-discovered Areas . | . . . . Known Exits Taken . | . . . . Unknown Exits Taken 3 | 1 1 1 . Scrap Searched . | . . . . Spaces Dug . | . . . . Terrain Destroyed 48 | . . . 48 Melee . | . . . . Projectile . | . . . . AOE 48 | . . . 48 Terrain Rammed . | . . . . Walls Destroyed . | . . . . Machines Disabled . | . . . . Actions | -11 -10 -10 -9 --------- Run | Scr Mat Min Mat Total 571 | 71 180 146 174 Wait 3 | . . . 3 Move 493 | 48 159 137 149 Hop 1 | . . . 1 Pick Up 24 | 9 8 2 5 Fast Attach 1 | 1 . . . Attach 13 | 5 . . 8 Detach . | . . . . Swap 9 | 3 4 . 2 Drop 6 | 1 2 3 . Fire 21 | 4 7 4 6 Melee . | . . . . Ram . | . . . . Kick . | . . . . Crush . | . . . . Escape Stasis . | . . . . Rewire . | . . . . Trap . | . . . . Miscellaneous . | . . . . Route ------- -11/Scrapyard -10/Materials -10/Mines -9/Materials History --------- Turn | Location | Event 14 | -11/Scrapyard | Discovered new exit (range 15) 92 | -11/Scrapyard | Entered Materials 304 | -10/Materials | Build established: Mutant 321 | -10/Materials | Discovered new exit (range 14) 345 | -10/Materials | Entered Mines 524 | -10/Mines | Discovered new exit (range 9) 580 | -10/Mines | Entered Materials 580 | -9/Materials | Accompanied by 2 allies 580 | -9/Materials | Evolved 2 slots: Power x1, Utility x1 585 | -9/Materials | Led the pair of lost Derelicts to an unsafe place 887 | -9/Materials | Lost 6 parts (2p1n1u2w) 901 | -9/Materials | Core integrity fell below 50% 920 | -9/Materials | Core integrity fell below 20% 942 | -9/Materials | Lost 3 parts (1n1u1w) 949 | -9/Materials | Destroyed by Y-45 Defender with Heavy Assault Rifle Last Messages --------------- 00851_ K-01 Serf collects debris. 00854_ U-05 Engineer lays Concrete. 00855_ The unstable cave ceiling collapses. 00855_ K-01 Serf collects debris. 00855_ U-05 Engineer lays Concrete. 00856_ Grenade Launcher destroyed. 00857_ The unstable cave ceiling collapses. 00868_ U-05 Engineer lays Concrete. 00869_ R-06 Scavenger inserts Lgt. Ion Engine into recycling unit. 00872_ R-06 Scavenger inserts Wheel into recycling unit. 00874_ U-05 Engineer lays Concrete. 00903_ Com. Wheel destroyed. 00904_ R-06 Scavenger inserts Lgt. Ion Engine into recycling unit. 00907_ R-06 Scavenger inserts Lgt. Assault Rifle into recycling unit. 00908_ Recycling unit begins recycling process. 00908_ Mni. Grenade Launcher destroyed. 00910_ R-06 Scavenger inserts Lgt. Ion Engine into recycling unit. 00911_ Imp. Heat Sink destroyed. 00913_ R-06 Scavenger inserts Heat Sink into recycling unit. 00914_ Recycling unit begins recycling process. Map ----- +----------------------------------------------------+ | | | | | | | | | | | | | ?????????????????????????????????????????????????? | | ?????????????????????????????????????????????????? | | ?????????????????????????????????????????????????? | | ?????????????????????????????????????????????????? | | ?????????????????????????????????????????????????? | | ?????????????????????????????????????????????????? | | ?????????????????????????????????????????????????? | | ???????????????????????????????????#####?????????? | | ??????????????????????????????????? #?????????? | | ????????????????????????????#####? #?????????? | | ???????????????????########## #? !![ #?????????? | | ???????????????????# T # # !![ #?????????? | | ????##?????????????# # # ![[ #?????????? | | #### ###???????????#""" # + #?????????? | | # #???????????#""" # ########?????????? | | # !"""#???????????#""" # #????????????????? | | # """#?????#######""" # #????????????????? | | # """#????##!!!!## # #????????????????? | | # #????#! !# # #????????????????? | | # """#????#! !# @ # #????????????????? | | # ""###### ######/### #????????????????? | | # """# #????????????????? | | # + #????????????????? | | # """# #????????????????? | | # """### # ####/#######????????????????? | | # """#?# ### [ Y #??????????????????? | | # #?# = ## #??????????????????? | | ########?## # ### #??????????????????? | | ??????????#### ## #??????????????????? | | ?????????????## ### """ "" #??????????????????? | | ??????????????# #?# """ Y" #??????????????????? | | ??????????????# #?# """ "" #??????????????????? | | ??????????????# #?# #??????????????????? | | ??????????????# #?#######"###??????????????????? | | ??????????????# ####### #??????????????????? | | ??????????????# #??????????????????? | | ?????????????## T #??????????????????? | | ?????????????## #??????????????????? | | ?????????????### ## # #??????????????????? | | ?????????????## # ##??????????????????? | | ????????????# ## #???????????????????? | | ????????????# ## # #???????????????????? | | ????????????## # #???????????????????? | | ?????????????# # #???????????????????? | +----------------------------------------------------+ Best States ------------- Heat Dissipation 42 Energy Generation 15 Energy Capacity 400 Matter Stores 90 Matter Capacity 300 Sight Range 16 Terrain Scan Density 10 Armor Coverage 150 Evasion (%) 40 Recoil Reduction 2 Item Schematics ----------------- None Robot Schematics ------------------ None Fabricated ------------ Nothing Alien Tech Used ----------------- None Achievements -------------- None Challenges ------------ None Game ------ Seed LaserMyomerMegatreads Manual? 0 Play Time 00:11:51 Cumulative 40.7 hours Start 2022.02.23 @ 19:12:22 End 2022.02.23 @ 19:21:11 Sessions 1 Manual Loads 0 Difficulty Rogue Special Mode None Game No. 52 Rogue 22 Adventurer 30 Explorer 0 Win Type - Total 0 Types 0/0/0/0/0/0/0/0/0 Lore% 21 Gallery% 34 Achievement% 25 Wizard Run 0 Options --------- ASCII 0 Keyboard 0 Movement Mouse Keybinds 0 Fullscreen 2 Font 16/Proggy Map View 76x50 Tactical HUD 1 Map Filters NONE Filters NONE Steam 1 RUN: 25e87ca6-87cc-44ba-b5d0-463ebe004a53